Cogmind - Beta 17.1 @@@ ROGUE MODE // 2026.09.01 @ 23:45:43 Player: naththebg Result: Self-destructed Performance ------------- Evolutions (6) 3000 Regions Visited (15) 3000 Robots Destroyed (449) 2245 Value Destroyed (21593) 21593 Prototype IDs (49) 980 Alien Tech Used (0) 0 Bonus (34274) 34274 TOTAL SCORE: 65092 Bonus ------- Triggered High Security 500 High Alert Combat Kills 9678 Follower Combat Kills 2186 Prayed to X0-1V1 5000 Major X0-1V1 Interference 16050 Entered Garrisons 200 Network Hubs Disabled 400 Built Enhanced Grunts 300 A7 Reached Mainframe 300 Met R17 at Cetus 500 Friendly Fire -840 Cogmind --------- Core Integrity 635/1150 Matter 146/300 Energy 653/653 System Corruption 22% Temperature Cool (12) Movement Core (1350) Ox26 Location -4/Hub_04(d) Parts ------- > --- POWER (2) -------- Quantum-Antimatter Reactor > --- PROPULSION (4) --- (None) > --- UTILITY (8) ------ Armored Scrap Engine High-capacity Storage Unit Advanced Visual Processing Unit Experimental Targeting Computer Quantum Capacitor > --- WEAPON (5) ------- Hvy. Kinetic Gauss Construct/C > --- INVENTORY (20) --- Enhanced Biometal Leg Experimental Heat Sink Advanced Cooling System Advanced Cooling System Advanced Signal Interpreter Precision Matter Filter Kinecellerator Improved Weapon Cycler Advanced Phase Shifter Centrium Medium Armor Plating Advanced Powered Armor Graphene Brace Improved Force Field Advanced Component Analysis Suite Rocket Array Precision Rocket Launcher PL-3XN's Ring of Power Peak State ------------ > --- POWER ------------ Quantum-Antimatter Reactor > --- PROPULSION ------- Treaded Armored-Myomer Exoskeleton > --- UTILITY ---------- Armored Scrap Engine Advanced Cooling System Advanced Cooling System High-capacity Storage Unit Advanced Visual Processing Unit Experimental Reaction Control System Advanced Force Field > --- WEAPON ----------- Hpw. Thermal Quantum Construct/G Hvy. Kinetic Gauss Construct/C > --- INVENTORY -------- Heavy Antimatter Reactor Advanced Cooling System Advanced Signal Interpreter Terrain Scan Processor Precision Matter Filter Kinecellerator Improved Weapon Cycler Advanced Phase Shifter Advanced Cloaking Device Improved Medium Armor Plating Advanced Powered Armor Graphene Brace Improved Force Field Advanced Component Analysis Suite Gamma Bomb Array Rocket Array Rocket Array Rocket Array Precision Rocket Launcher PL-3XN's Ring of Power [Rating: 150] Favorites ----------- Power Constructs Engine Improved Deuterium Engine Power Core Nuclear Core Reactor Constructs Propulsion Light Treads Treads Light Treads Leg Enhanced Flexi-carbon Leg Wheel Subdweller Monowheel Utility High-capacity Storage Unit Device Armored Scrap Engine Storage High-capacity Storage Unit Processor Advanced Visual Processing Unit Hackware System Shield Protection Heavy Armor Plating Weapon Constructs Energy Gun Advanced Beam Rifle Energy Cannon Constructs Ballistic Gun Precision Assault Rifle Ballistic Cannon Magnetic Acceleration Cannon Launcher Precision Rocket Launcher Special Weapon Improved Plasma Cutter Impact Weapon Powered Hammer Slashing Weapon Scimitar of Distortion Piercing Weapon Lance Build | -11 -10 -10 -8 -7 -7 -7 -5 -5 -4 -4 -4 -4 -4 -4 -4 ------- Run | Yrd Mat Sub Mat Fac Sto Rec Fac Gar Fac Was Fac Ext Cet Arc Hub Slots Evolved 12 | . . . 4 2 . . 4 . 2 . . . . . . Power 1 | . . . . . . . 1 . . . . . . . . Propulsion 2 | . . . 1 . . . 1 . . . . . . . . Utility 7 | . . . 2 1 . . 2 . 2 . . . . . . Weapon 2 | . . . 1 1 . . . . . . . . . . . Parts Attached 140 | 6 5 . 34 13 32 12 2 13 7 3 2 . 2 1 8 Power 9 | 1 . . 4 . 3 . . 1 . . . . . . . Engine 6 | 1 . . 1 . 3 . . 1 . . . . . . . Core 3 | . . . 3 . . . . . . . . . . . . Reactor . | . . . . . . . . . . . . . . . . Propulsion 21 | 2 . . 9 3 5 1 . . . . . . . . 1 Treads 19 | 2 . . 9 3 5 . . . . . . . . . . Leg 1 | . . . . . . . . . . . . . . . 1 Wheel 1 | . . . . . . 1 . . . . . . . . . Hover . | . . . . . . . . . . . . . . . . Flight . | . . . . . . . . . . . . . . . . Utility 59 | 1 4 . 8 4 6 6 2 10 7 2 2 . 1 1 5 Device 33 | . 2 . 3 4 . 5 1 6 5 2 1 . . 1 3 Storage 4 | 1 2 . . . 1 . . . . . . . . . . Processor 5 | . . . 1 . . . . . 2 . 1 . . . 1 Hackware 1 | . . . . . . . 1 . . . . . . . . Protection 16 | . . . 4 . 5 1 . 4 . . . . 1 . 1 Artifact . | . . . . . . . . . . . . . . . . Weapon 51 | 2 1 . 13 6 18 5 . 2 . 1 . . 1 . 2 Energy Gun 15 | 1 1 . 5 4 1 2 . . . . . . 1 . . Energy Cannon 7 | . . . 2 . 3 1 . . . . . . . . 1 Ballistic Gun 16 | 1 . . 5 . 7 2 . 1 . . . . . . . Ballistic Cannon 4 | . . . 1 . 2 . . 1 . . . . . . . Launcher 8 | . . . . 2 4 . . . . 1 . . . . 1 Special Weapon 1 | . . . . . 1 . . . . . . . . . . Impact Weapon . | . . . . . . . . . . . . . . . . Slashing Weapon . | . . . . . . . . . . . . . . . . Piercing Weapon . | . . . . . . . . . . . . . . . . Special Melee Weapon . | . . . . . . . . . . . . . . . . Unidentified Prototypes 26 | . 1 . 6 . 10 2 . 2 2 . . . 1 . 2 Corrupted Parts 1 | . . . . . . . . . . . . . . . 1 System Corruption 10 | . . . . . . . . . . . . . . . 10 Parts Lost 35 | . . . 3 7 10 2 . 1 . . . . . . 12 Power 2 | . . . . . 1 . . . . . . . . . 1 Propulsion 13 | . . . 1 4 4 . . . . . . . . . 4 Utility 10 | . . . 2 1 1 2 . 1 . . . . . . 3 Weapon 10 | . . . . 2 4 . . . . . . . . . 4 Highest Loss Streak 7 | . . . 1 4 2 1 . 1 . . . . . . 7 To Critical Strikes 1 | . . . . . . . . . . . . . . . 1 Average Backups 15 | 4 7 12 14 14 16 16 10 17 17 18 18 17 18 18 16 Power . | 1 1 2 . . . . . . 1 1 . . . . . Propulsion 2 | 2 4 4 3 2 . 4 1 . . . . . . . . Utility 4 | . 1 4 2 . . 1 4 7 9 13 12 12 12 12 12 Weapon 7 | . 1 1 7 11 15 10 4 8 7 4 5 5 6 5 3 Tool/Special . | . . . . . . . . . . . . . . . . Unused Backups 103 | . 2 . 28 1 8 21 3 13 12 2 3 . . 1 9 Power 5 | . . . 2 . . 1 1 . . . 1 . . . . Propulsion 19 | . 2 . 10 . . 3 2 1 . . . . . . 1 Utility 24 | . . . 8 1 . 1 . 4 1 2 1 . . . 6 Weapon 55 | . . . 8 . 8 16 . 8 11 . 1 . . 1 2 Tool/Special . | . . . . . . . . . . . . . . . . Average Slot Usage (%) 69 | . 98 100 92 90 89 59 44 48 54 55 52 52 51 52 47 Engine 4 | . 14 14 4 7 6 5 4 4 . 2 . . . . . Core 1 | . . . 4 . . 1 . . . . . . . . . Reactor 1 | . . . . . . . . 1 3 1 5 5 5 5 4 Treads 12 | . 28 28 26 22 20 6 3 1 . . . . . . 3 Device 14 | . 12 14 9 16 3 10 16 16 25 26 26 26 25 26 21 Storage 8 | . 14 14 9 14 15 9 5 5 5 5 5 5 5 5 4 Processor 2 | . . . 3 . . . . . 4 5 5 5 5 5 4 Protection 2 | . . . 6 . 8 1 . 4 . . . . . . . Energy Gun 4 | . 14 14 8 21 1 1 . . . . . . . . . Energy Cannon 1 | . . . . . . 3 3 1 3 4 . . . . 2 Ballistic Gun 8 | . 14 14 14 . 30 7 . . . . . . . . . Ballistic Cannon 1 | . . . . . . 2 1 3 1 . 4 5 5 5 1 Peak Build Rating 150 | 6 21 22 57 75 64 89 76 127 148 150 140 136 140 140 149 Average Rating 75 | 4 10 21 39 57 51 61 70 97 141 143 138 136 136 139 134 On Entrance 81 | . 6 21 22 57 56 52 70 71 111 140 140 136 136 139 140 Avg Prop Armor Cover (%) 7 | 33 . . . . 3 6 . . . . . . . . . Naked Turns . | . . . . . . . . . . . . . . . . Heaviest Build 155 | 13 31 31 59 58 92 92 72 100 121 125 125 116 129 129 155 Greatest Support 146 | 40 40 40 73 74 63 71 68 142 129 129 129 126 126 126 146 Greatest Overweight (x) 4 | . . . . . 3 4 1 1 . . . . 1 1 3 Average Overweight (x) . | . . . . . . 1 . . . . . . . . . Largest Inventory Capacity 20 | 8 15 15 15 15 20 20 20 20 20 20 20 20 20 20 20 Average Capacity 17 | 6 9 15 15 15 18 20 20 20 20 20 20 20 20 20 20 Most Carried 20 | 7 11 15 15 15 20 20 12 20 20 20 20 20 20 20 20 Average Carried 16 | 4 7 12 14 14 16 16 10 17 17 19 19 19 19 20 18 Final Capacity 20 | 8 15 15 15 15 20 20 20 20 20 20 20 20 20 20 20 Final Carried 20 | 6 11 15 14 15 20 13 12 20 20 20 19 20 20 20 17 Scrap Engine Consumption 147 | . . . . . . 62 6 26 28 . 6 . 8 . 11 Constructs Created 22 | . . . . . . 13 1 7 . 1 . . . . . Constructs Modified 152 | . . . . . . 65 2 33 26 12 4 . 4 . 6 Transmogrified Parts 21 | . . . 16 5 . . . . . . . . . . . Integrity Recovered 254 | . . . 158 96 . . . . . . . . . . . Class Distribution -------------------- 41% | Construct 17% | Scavenger-Tank 15% | Mutant 8% | Commander-Construct 8% | Scavenger-Gunner 3% | Gunner Dominant Class ---------------- Mutant | -10/Materials Mutant | -10/Subcaves Scavenger-Gunner | -8/Materials Tank | -7/Factory Scavenger-Tank | -7/Storage Construct | -7/Recycling Construct | -5/Factory Construct | -5/Garrison Construct | -4/Factory Construct | -4/Waste Construct | -4/Factory Commander-Construct | -4/Extension Commander-Construct | -4/Cetus Commander-Construct | -4/Archives Construct | -4/Hub_04(d) Resources | -11 -10 -10 -8 -7 -7 -7 -5 -5 -4 -4 -4 -4 -4 -4 -4 ----------- Run | Yrd Mat Sub Mat Fac Sto Rec Fac Gar Fac Was Fac Ext Cet Arc Hub Matter Collected 11375 | 244 151 65 2256 305 1706 976 3 410 1889 162 526 701 140 38 1803 Remotely 110 | . . . . 110 . . . . . . . . . . . Salvage Created 24126 | . 577 238 3358 1299 2337 1535 52 1219 5107 199 611 2630 615 284 4065 Parts 958 | . 31 16 134 44 109 65 4 85 188 5 22 62 18 10 165 Haulers Intercepted 19 | . 2 . 1 1 5 . . . 6 . . 1 . . 3 Recyclers Shooed 6 | . . . 1 . 2 . . . 3 . . . . . . Parts Field Recycled . | . . . . . . . . . . . . . . . . Retrieved Matter . | . . . . . . . . . . . . . . . . Parts Self-Destructed 14 | . . 14 . . . . . . . . . . . . . Prevented . | . . . . . . . . . . . . . . . . Parts Restored . | . . . . . . . . . . . . . . . . Kills | -11 -10 -10 -8 -7 -7 -7 -5 -5 -4 -4 -4 -4 -4 -4 -4 ------- Run | Yrd Mat Sub Mat Fac Sto Rec Fac Gar Fac Was Fac Ext Cet Arc Hub Combat Hostiles Destroyed 325 | . 7 6 56 34 33 14 4 26 61 1 4 21 7 3 48 Melee 7 | . . . . . . . . . 7 . . . . . . Guns 123 | . 7 6 54 22 27 7 . . . . . . . . . Cannons 102 | . . . 1 . . 6 . 18 36 1 4 8 3 3 22 AOE 62 | . . . . 10 6 . 4 8 12 . . . . . 22 Classes Destroyed 25 | . 6 3 5 3 1 1 . 1 3 1 . . . . 1 Worker 23 | . 2 . . 4 3 . . . 5 . . . . . 9 Builder 18 | . . . . 2 1 1 . . 5 . 1 1 . . 7 Hauler 19 | . 2 . 1 1 5 . . . 6 . . 1 . . 3 Recycler 27 | . . . 5 . 4 6 . . 8 . 1 3 . . . Carrier 1 | . . . . . . . . . 1 . . . . . . Mechanic 5 | . 1 . 1 . . . . . 1 . . 1 . . 1 Operator 11 | . 1 . 1 . 3 . . 1 1 . 1 3 . . . Watcher 16 | . 2 . 2 . 2 . . . 4 . . 2 2 . 2 Swarmer 39 | . . 1 3 4 . . 4 9 18 . . . . . . Cutter 5 | . . . . . . 1 . 4 . . . . . . . Saboteur 1 | . . . . . . . . . 1 . . . . . . Grunt 111 | . 7 1 34 11 16 . . 1 16 . 1 5 . . 19 Brawler 9 | . . . 3 2 2 . . . . . . 1 . . 1 Duelist 5 | . . . . . 2 . . . 1 . . . . . 2 Protector 6 | . . . 1 1 1 . . . 1 . . . . . 2 Sentry 64 | . . 1 11 8 6 9 . 5 6 . 2 10 . 3 3 Demolisher 1 | . . . . . . . . . . . . . . . 1 Specialist 8 | . . . . 2 . . . 1 2 . . . . . 3 Hunter 24 | . . . 3 3 2 . . 3 2 . . . . . 11 Programmer 26 | . . . . 3 4 . . 1 13 . . 2 1 . 2 Heavy 2 | . . . 1 . . . . . . . 1 . . . . Behemoth 3 | . . . . . . . . . 1 . . 2 . . . Compactor 1 | . . . . . . . . . . 1 . . . . . Cetus Guard 6 | . . . . . . . . . . . . . 6 . . Enhanced Grunt 1 | . . . . . . . . . . . . . . . 1 Lightning 4 | . . . . . . . . . . . . . . . 4 Striker 2 | . . . . . . . . 2 . . . . . . . Subdweller 7 | . . 3 . . . 4 . . . . . . . . . Surgeon 1 | . . . . . . . . . . . 1 . . . . Thug 2 | . . . . . . . . . . . 2 . . . . Butcher 1 | . . . . . . . . . . . . 1 . . . Best Kill Streak 22 | . 2 3 10 8 10 2 4 6 12 1 3 10 4 3 22 Combat Bots Only 11 | . 2 3 8 7 8 2 4 6 7 1 2 8 3 3 11 Max Kills in Single Turn 7 | . 1 1 2 4 6 1 3 4 3 1 2 1 1 1 7 Gunslinging 1 | . . . . 1 1 . . . . . . . . . . Exploded 6 | . . . . 4 6 . 3 4 3 . . . . . 5 Melee 1 | . . . . . . . . . 1 . . . . . . Uniques/NPCs Destroyed . | . . . . . . . . . . . . . . . . Combat | -11 -10 -10 -8 -7 -7 -7 -5 -5 -4 -4 -4 -4 -4 -4 -4 -------- Run | Yrd Mat Sub Mat Fac Sto Rec Fac Gar Fac Was Fac Ext Cet Arc Hub Hostile Shots Fired 1893 | . 23 23 266 350 207 220 8 75 296 . 44 34 6 . 341 Missed 739 | . 4 6 80 133 52 84 2 32 171 . 27 16 5 . 127 Hits 1154 | . 19 17 186 217 155 136 6 43 125 . 17 18 1 . 214 Melee 14 | . . . . 2 4 2 . 1 2 . . . . . 3 Projectile 1140 | . 19 17 186 215 151 134 6 42 123 . 17 18 1 . 211 AOE 1 | . . . . . . . . . 1 . . . . . . Critical Strikes 44 | . . . 10 4 7 . . 1 4 . . 4 . . 14 Part Disruptions 1 | . . . 1 . . . . . . . . . . . . Damage Taken 14354 | . 244 249 2487 1813 1684 958 65 655 1130 147 333 191 14 . 4384 Core 1399 | . 56 86 198 236 139 109 . 39 30 126 43 18 . . 319 Absorbed by Shields 2327 | . . . . . . . 24 211 1197 10 46 202 14 . 623 Ignored by Resistances 1347 | . . . 325 224 137 107 . 18 131 . 37 30 . . 338 Regen/Repaired (Parts) 2120 | . . . 149 . . 519 30 214 380 401 66 . 86 . 275 Core Remaining (%) 87 | 100 . 72 78 . . 91 . 96 . . . . . . . Volleys Fired 956 | . 36 14 158 58 77 85 5 79 175 16 22 60 15 9 147 Largest 5 | . 2 2 3 4 5 5 1 1 1 1 1 1 1 1 1 Hottest 288 | . 85 85 150 220 142 192 54 88 288 288 184 241 241 145 145 Shots Fired 1657 | . 72 26 429 157 285 160 5 79 175 16 21 60 15 9 148 Gun 1004 | . 72 26 414 146 280 66 . . . . . . . . . Cannon 621 | . . . 15 . 2 94 3 77 172 16 21 60 15 9 137 Launcher 31 | . . . . 11 2 . 2 2 3 . . . . . 11 Special 1 | . . . . . 1 . . . . . . . . . . Kinetic 1010 | . 36 14 296 . 279 95 . 43 84 . 21 . 4 9 129 Thermal 474 | . 36 12 114 146 3 64 3 34 55 . . . . . 7 Explosive 29 | . . . . 11 2 . 2 2 3 . . . . . 9 Electromagnetic 143 | . . . 19 . . 1 . . 33 16 . 60 11 . 3 Robot Hit Streak 24 | . 10 21 23 19 24 14 1 17 12 5 3 7 7 5 11 Robot Miss Streak 5 | . 3 2 5 3 4 4 1 2 5 2 3 4 2 1 5 Penetration Max 1 | . . . . . . . . 1 1 . 1 . . . 1 Secondary Targets 17 | . . . 5 5 7 . . . . . . . . . . Max Gunslinging Chain 1 | . . . 1 1 1 . . . . . . . . . . Capacitor 34 | . . . . . . . . . . . . . . . 34 Shots Hit Robots 1073 | . 44 21 296 129 192 89 1 45 97 10 10 37 11 4 87 Core Hits 715 | . 25 10 129 103 118 33 5 29 67 2 6 12 3 3 170 Critical Kills 3 | . . . 1 . . 1 . 1 . . . . . . . Critical Parts Destroyed 6 | . . . 2 . 2 1 . . 1 . . . . . . Critical Strikes 26 | . . 1 12 3 3 2 . 1 3 . . . . . 1 Burn 14 | . . 1 8 3 . . . . 2 . . . . . . Destroy 11 | . . . 4 . 3 2 . 1 1 . . . . . . Blast 1 | . . . . . . . . . . . . . . . 1 Melee Attacks 12 | . . . . . . . . . 12 . . . . . . Impact . | . . . . . . . . . . . . . . . . Slashing 12 | . . . . . . . . . 12 . . . . . . Piercing . | . . . . . . . . . . . . . . . . Sneak Attacks 1 | . . . . . . . . . 1 . . . . . . Combat Hostiles . | . . . . . . . . . . . . . . . . Follow-up Attacks . | . . . . . . . . . . . . . . . . Damage Inflicted 68755 | . 603 286 5492 4928 4964 3084 336 4587 16644 161 2199 5098 1731 677 17965 Guns 13651 | . 599 286 5192 3007 3823 744 . . . . . . . . . Cannons 40052 | . . . 145 . 26 2330 . 4052 11805 161 2199 5098 1731 677 11828 Explosions 12079 | . . . 155 1914 1100 . 336 535 1902 . . . . . 6137 Melee 323 | . . . . . . . . . 323 . . . . . . Ramming 2650 | . 4 . . 7 15 10 . . 2614 . . . . . . Kinetic 31810 | . 281 157 3512 . 3823 2126 . 2265 5267 . 2199 . 337 677 11166 Thermal 13938 | . 318 129 1582 3007 26 948 . 1787 5382 . . . . . 759 Explosive 8415 | . . . . 1914 1100 . 336 535 952 . . . . . 3578 Electromagnetic 11619 | . . . 398 . . . . . 2106 161 . 5098 1394 . 2462 Impact . | . . . . . . . . . . . . . . . . Slashing 323 | . . . . . . . . . 323 . . . . . . Piercing . | . . . . . . . . . . . . . . . . Highest Corruption 22 | . . . 7 4 22 22 . . 10 12 13 13 . . 22 Average Corruption 10 | . . . 2 3 14 15 . . 4 10 12 13 . . 6 Corruption Purged . | . . . . . . . . . . . . . . . . Corruption Blocked . | . . . . . . . . . . . . . . . . Effects 298 | . . . 15 12 69 139 . . 22 14 12 9 . . 6 Message Errors 70 | . . . 7 4 13 37 . . 3 3 2 1 . . . Matter Fused 60 | . . . 1 3 18 23 . . 6 1 4 2 . . 2 Heat Flow Errors 43 | . . . 2 2 9 19 . . 4 5 . 2 . . . Energy Discharges 42 | . . . 1 2 11 18 . . 3 2 3 1 . . 1 Parts Rejected 3 | . . . . . 1 . . . 2 . . . . . . Parts Fused 1 | . . . . . . . . . . . . 1 . . . Data Loss (minor) 27 | . . . 1 . 3 17 . . 3 1 1 . . . 1 Data Loss (major) 17 | . . . 2 . 3 8 . . 1 1 . 1 . . 1 Misfires 8 | . . . . . 1 6 . . . . . . . . 1 Alerts 5 | . . . . . 1 3 . . . . . 1 . . . Misdirections 3 | . . . . . . 1 . . . 1 1 . . . . Weapon Failures 19 | . . . 1 1 9 7 . . . . 1 . . . . Overload Shots 3 | . . . . 1 1 1 . . . . . . . . . Overflow Damage 8361 | . . . . 45 2 52 4 440 3803 . 351 1447 578 . 1639 Projectiles 6999 | . . . . . . 52 . 440 2718 . 351 1447 578 . 1413 Explosions 388 | . . . . 45 2 . 4 . 111 . . . . . 226 Melee 974 | . . . . . . . . . 974 . . . . . . Knockbacks 80 | . . . . 1 . 4 . 6 25 . . . 1 . 43 Impact 22 | . . . . 1 . . . . 21 . . . . . . Kinetic 53 | . . . . . . 4 . 6 4 . . . 1 . 38 Secondary 5 | . . . . . . . . . . . . . . . 5 Self-Inflicted Damage 403 | . . . . . . . . 28 140 . . . . . 235 Shots 10 | . . . . . . . . 1 3 . . . . . 6 Rammed 3 | . 1 . . . 1 1 . . . . . . . . . Targets Rammed 60 | . 1 . . 1 1 1 . . 56 . . . . . . Kicked 56 | . . . . . . . . . 56 . . . . . . Crushed 1 | . . . . 1 . . . . . . . . . . . Highest Temperature 593 | . 42 . 237 205 301 254 . . 362 593 204 252 310 96 191 Average Temperature 81 | . 24 . 78 22 55 75 . . 121 134 67 90 116 38 72 Received Heat Transfer 3263 | . 141 69 1197 486 465 318 . 30 87 . 56 39 . . 375 Effects 10 | . . . 1 . 3 1 . . 2 3 . . . . . Energy Bleed 4 | . . . . . 1 1 . . 2 . . . . . . Interference 3 | . . . 1 . 2 . . . . . . . . . . Short Circuit 1 | . . . . . . . . . . 1 . . . . . Damage (minor) 1 | . . . . . . . . . . 1 . . . . . Damage (core) 1 | . . . . . . . . . . 1 . . . . . Siege Activations . | . . . . . . . . . . . . . . . . Martial Activations . | . . . . . . . . . . . . . . . . Shielding Activations . | . . . . . . . . . . . . . . . . Robots Disrupted . | . . . . . . . . . . . . . . . . Combat Hostiles . | . . . . . . . . . . . . . . . . Robots Corrupted 35 | . . . . . . . . . 10 . . 15 4 . 6 Combat Hostiles 28 | . . . . . . . . . 6 . . 13 4 . 5 Parts Fried 100 | . . . 1 . . . . . 26 . . 54 11 . 8 Impact Corruptions 41 | . . . . . . . . . 39 . . . . . 2 Robots Melted 4 | . . . 1 2 . 1 . . . . . . . . . Combat Hostiles 4 | . . . 1 2 . 1 . . . . . . . . . Parts Melted 46 | . . . 14 17 3 6 . . 1 . . . . 3 2 Heat Transferred 14911 | . 730 370 3641 5617 37 1165 . 925 2091 . . . . . 335 Parts Sabotaged 2 | . . . . . . . . . . . . . . . 2 Parts Stolen . | . . . . . . . . . . . . . . . . Parts Stripped . | . . . . . . . . . . . . . . . . Power Chain Reactions 4 | . . . 2 . . . . . . . . . . . 2 Alert | -11 -10 -10 -8 -7 -7 -7 -5 -5 -4 -4 -4 -4 -4 -4 -4 ------- Run | Yrd Mat Sub Mat Fac Sto Rec Fac Gar Fac Was Fac Ext Cet Arc Hub Maximum Alert Level 5 | . . . 4 4 4 2 . 4 5 3 4 4 4 2 5 Low Security (%) 29 | 100 100 . 24 . . 65 100 9 . . . . . . . Level 1 11 | . . . 14 . 2 29 . 5 . . . . . . 10 Level 2 14 | . . . 18 21 35 5 . 22 . . 11 40 . 100 7 Level 3 21 | . . . 12 61 41 . . 52 19 100 42 27 88 . 12 Level 4 14 | . . . 29 17 20 . . 10 5 . 45 32 11 . 47 Level 5 8 | . . . . . . . . . 75 . . . . . 13 High Security . | . . . . . . . . . . . . . . . 9 Max Security . | . . . . . . . . . . . . . . . . Sterilizations 2 | . . . 1 . . . . . . . 1 . . . . Peak Influence 3076 | . 70 . 1251 1249 1214 490 168 1384 3076 1075 1268 1484 1114 619 2731 Initial 1075 | . . . . 548 567 460 130 84 726 1075 671 611 815 437 202 Average 728 | . 23 . 634 935 806 200 114 747 1918 1029 1002 915 1030 574 1361 Influence Increases 16583 | . 314 60 2005 1174 1611 542 210 1310 2954 90 847 1364 459 202 3441 Destroy 0b10 Robot/C 7200 | . 140 60 1100 660 860 240 80 520 1220 . 200 600 220 80 1220 Destroy 0b10 Robot/NC 690 | . 40 . 60 35 95 40 . 10 155 . 20 55 10 . 170 Destroy Leader 1356 | . 38 . 268 152 224 . 10 40 270 . 60 64 10 . 220 Allied During Kill 2037 | . . . . . 289 . . . . . 262 553 190 80 663 Successful Hack 203 | . 21 . 19 5 25 47 36 14 18 . . 7 . . 11 Select Force Hacks 60 | . 30 . 30 . . . . . . . . . . . . Disable Machine 1305 | . . . 30 105 90 15 . 105 540 . 45 45 15 30 285 Anti-Garrison Action 700 | . . . . 150 . . . 400 . . . . . . 150 Destroy Structure 1694 | . . . 24 37 28 76 34 191 410 90 76 40 14 12 662 Advance Influence 50 | . . . . . . . 50 . . . . . . . . Partial Spotted 15 | . . . . . . . . . 15 . . . . . . Lose Combat Pursuer 255 | . 45 . 30 30 . . . 30 60 . . . . . 60 Miscellaneous 1018 | . . . 444 . . 124 . . 266 . 184 . . . . Influence Decreases 13862 | . 314 60 800 1131 1677 1532 282 46 1265 2204 558 1155 822 717 1299 Entered New Map 7465 | . . . . 657 681 722 112 36 658 1998 288 637 642 657 377 Time Decay 4778 | . 314 60 641 374 546 770 170 . 607 206 130 398 160 60 342 Lost Part 350 | . . . 30 70 100 20 . 10 . . . . . . 120 Lost Ally 840 | . . . . 30 200 20 . . . . 140 120 20 . 310 Purge Threat 429 | . . . 129 . 150 . . . . . . . . . 150 Squads Dispatched 82 | . 1 . 16 10 10 . 1 . 17 . 3 2 1 . 21 Investigation 13 | . 1 . 6 1 1 . 1 . 2 . . . . . 1 Extermination 15 | . . . . 2 3 . . . 6 . 1 . 1 . 2 Reinforcement 15 | . . . 2 1 1 . . . 1 . 1 1 . . 8 Assault 24 | . . . 2 3 2 . . . 8 . . 1 . . 8 Garrison 15 | . . . 6 3 3 . . . . . 1 . . . 2 Intercept . | . . . . . . . . . . . . . . . . Searches Triggered . | . . . . . . . . . . . . . . . . Construction Impeded 5 | . . . . . . . . . . . 1 1 . . 3 Haulers Reinforced 2 | . . . . . 1 . . . 1 . . . . . . Active Scanning Responses . | . . . . . . . . . . . . . . . . Cargo Convoy Interrupts 1 | . . . . . . . . . 1 . . . . . . Stealth | -11 -10 -10 -8 -7 -7 -7 -5 -5 -4 -4 -4 -4 -4 -4 -4 --------- Run | Yrd Mat Sub Mat Fac Sto Rec Fac Gar Fac Was Fac Ext Cet Arc Hub Distress Signals 12 | . 1 . . . 2 1 . . 2 . . . 1 . 5 Communications Jammed . | . . . . . . . . . . . . . . . . Distress Signals . | . . . . . . . . . . . . . . . . Times Spotted 434 | . 15 6 58 41 48 14 4 23 77 10 11 26 10 3 88 Peak Tracking Total 13 | . 5 3 6 6 9 2 4 5 7 3 4 6 5 2 13 Tactical Retreats 15 | . 2 . 2 2 . . . 1 4 1 . . . . 3 Traps | -11 -10 -10 -8 -7 -7 -7 -5 -5 -4 -4 -4 -4 -4 -4 -4 ------- Run | Yrd Mat Sub Mat Fac Sto Rec Fac Gar Fac Was Fac Ext Cet Arc Hub Traps Triggered 19 | . . . 2 3 . . . 4 6 . 1 2 . . 1 Indirectly 3 | . . . . . . . . . 2 . . . . . 1 Trap Hack Attempts . | . . . . . . . . . . . . . . . . Triggered . | . . . . . . . . . . . . . . . . Disarmed . | . . . . . . . . . . . . . . . . Reprogrammed . | . . . . . . . . . . . . . . . . Reused . | . . . . . . . . . . . . . . . . Traps Extracted . | . . . . . . . . . . . . . . . . Installed . | . . . . . . . . . . . . . . . . Triggered . | . . . . . . . . . . . . . . . . Machines | -11 -10 -10 -8 -7 -7 -7 -5 -5 -4 -4 -4 -4 -4 -4 -4 ---------- Run | Yrd Mat Sub Mat Fac Sto Rec Fac Gar Fac Was Fac Ext Cet Arc Hub Machines Disabled 96 | . . . 2 8 6 1 . 14 36 . 3 3 1 2 20 Max in Single Turn 14 | . . . 1 4 1 1 . 2 14 . 1 1 1 1 8 Garrison Access 6 | . . . 1 1 . . . . 2 . 1 . . . 1 Garrison Relay 4 | . . . . . . . . 4 . . . . . . . Phase Generator 1 | . . . . . . . . 1 . . . . . . . Network Hub 2 | . . . . . . . . . . . . . . . 2 Machines Repaired . | . . . . . . . . . . . . . . . . Machines Dismantled 1 | . . . . 1 . . . . . . . . . . . Machines Sabotaged . | . . . . . . . . . . . . . . . . Overloaded Fab Kills . | . . . . . . . . . . . . . . . . Hacking | -11 -10 -10 -8 -7 -7 -7 -5 -5 -4 -4 -4 -4 -4 -4 -4 --------- Run | Yrd Mat Sub Mat Fac Sto Rec Fac Gar Fac Was Fac Ext Cet Arc Hub Machines Accessed 71 | . 9 . 13 4 10 7 5 2 11 . 2 5 . . 3 Terminals 47 | . 8 . 9 2 8 3 4 2 3 . 1 4 . . 3 Fabricators 3 | . . . . 1 . . . . 2 . . . . . . Repair Stations 1 | . . . 1 . . . . . . . . . . . . Recycling Units 8 | . 1 . 1 . 1 3 . . 1 . . 1 . . . Scanalyzers 3 | . . . 1 . . . . . 2 . . . . . . Garrison Access 8 | . . . 1 1 1 . 1 . 3 . 1 . . . . Total Hacks 187 | . 24 . 39 8 25 16 22 5 25 . 3 8 . . 12 Successful 82 | . 10 . 27 4 8 6 7 1 9 . 2 3 . . 5 Failed 105 | . 14 . 12 4 17 10 15 4 16 . 1 5 . . 7 Catastrophic 15 | . 1 . 2 . 2 4 2 . 1 . 1 1 . . 1 Database Lockouts . | . . . . . . . . . . . . . . . . Manual 92 | . 18 . 17 6 13 7 15 . 6 . 1 2 1 . 6 Terminals 130 | . 22 . 21 6 21 5 20 5 9 . 2 7 . . 12 Fabricators 4 | . . . . 1 . . . . 3 . . . . . . Repair Stations 3 | . . . 3 . . . . . . . . . . . . Recycling Units 22 | . 2 . 5 . 2 9 . . 3 . . 1 . . . Scanalyzers 12 | . . . 9 . . . . . 3 . . . . . . Garrison Access 14 | . . . 1 1 2 . 2 . 7 . 1 . . . . Terminal Hacks 28 | . 3 . 7 1 4 2 3 1 2 . 1 2 . . 2 Robot Analysis 1 | . 1 . . . . . . . . . . . . . . Prototype ID Bank 2 | . 2 . . . . . . . . . . . . . . Open Door 5 | . . . . . 3 . . . . . . 2 . . . Branch Access Points 1 | . . . . . . . . . 1 . . . . . . Terminal Index 1 | . . . . . . . 1 . . . . . . . . Alert Level 10 | . . . 5 1 . . 1 . 1 . 1 . . . 1 Unreport Threat 3 | . . . 1 . 1 . . . . . . . . . 1 Locate Traps 1 | . . . . . . . 1 . . . . . . . . Zone Layout 1 | . . . 1 . . . . . . . . . . . . Patrol Navigation 1 | . . . . . . . . 1 . . . . . . . Release Object 2 | . . . . . . 2 . . . . . . . . . Fabricator Hacks 3 | . . . . 1 . . . . 2 . . . . . . Network Status 2 | . . . . . . . . . 2 . . . . . . Build 1 | . . . . 1 . . . . . . . . . . . Repair Station Hacks 2 | . . . 2 . . . . . . . . . . . . Scan Component 1 | . . . 1 . . . . . . . . . . . . Repair 1 | . . . 1 . . . . . . . . . . . . Recycling Unit Hacks 3 | . . . 1 . 1 . . . . . . 1 . . . Retrieve Components 3 | . . . 1 . 1 . . . . . . 1 . . . Scanalyzer 10 | . . . 8 . . . . . 2 . . . . . . Retrieve Study 10 | . . . 8 . . . . . 2 . . . . . . Garrison Access Hacks 5 | . . . 1 . . . 1 . 2 . 1 . . . . Unlock Access 2 | . . . 1 . . . 1 . . . . . . . . Seal Access 3 | . . . . . . . . . 2 . 1 . . . . Unauthorized Hacks 31 | . 7 . 8 2 3 4 3 . 1 . . . . . 3 Terminals 26 | . 6 . 7 2 3 1 3 . 1 . . . . . 3 Botnet 6 | . 1 . 1 . . . 2 . 1 . . . . . 1 Operators 1 | . . . . . . . . . . . . . . . 1 Skim 19 | . 5 . 6 2 3 1 1 . . . . . . . 1 Fabricators . | . . . . . . . . . . . . . . . . Repair Stations . | . . . . . . . . . . . . . . . . Recycling Units 5 | . 1 . 1 . . 3 . . . . . . . . . Reject 2 | . . . . . . 2 . . . . . . . . . Mask 1 | . . . . . . 1 . . . . . . . . . Tunnel 2 | . 1 . 1 . . . . . . . . . . . . Scanalyzers . | . . . . . . . . . . . . . . . . Garrison Access . | . . . . . . . . . . . . . . . . Data Cores Recovered 6 | . 1 . 1 . 1 . . . . . 1 2 . . . Used . | . . . . . . . . . . . . . . . . Hacking Detections 50 | . 7 . 8 3 7 5 4 2 7 . 1 3 . . 3 Full Trace Events 6 | . . . 1 . 1 1 1 1 1 . . . . . . Feedback Events 2 | . . . . . 1 . . . 1 . . . . . . Corruption 2 | . . . . . 1 . . . 1 . . . . . . Feedback Blocked . | . . . . . . . . . . . . . . . . Robot Schematics Acquired . | . . . . . . . . . . . . . . . . Robots Built 4 | . . . . 4 . . . . . . . . . . . Authchips . | . . . . . . . . . . . . . . . . Time 81 | . . . . 81 . . . . . . . . . . . Total Robot Build Rating 4 | . . . . 4 . . . . . . . . . . . Part Schematics Acquired . | . . . . . . . . . . . . . . . . Parts Built . | . . . . . . . . . . . . . . . . Authchips . | . . . . . . . . . . . . . . . . Time . | . . . . . . . . . . . . . . . . Total Part Build Rating . | . . . . . . . . . . . . . . . . Part Studies Acquired 10 | . . . 8 . . . . . 2 . . . . . . Parts Repaired 1 | . . . 1 . . . . . . . . . . . . Time 60 | . . . 60 . . . . . . . . . . . . Parts Recycled . | . . . . . . . . . . . . . . . . Recycled Matter . | . . . . . . . . . . . . . . . . Retrieved Matter . | . . . . . . . . . . . . . . . . Retrieved Components 17 | . . . 4 . 4 . . . . . . 9 . . . Parts Scanalyzed . | . . . . . . . . . . . . . . . . Part Schematics Acquired . | . . . . . . . . . . . . . . . . Parts Damaged . | . . . . . . . . . . . . . . . . Bothacking | -11 -10 -10 -8 -7 -7 -7 -5 -5 -4 -4 -4 -4 -4 -4 -4 ------------ Run | Yrd Mat Sub Mat Fac Sto Rec Fac Gar Fac Was Fac Ext Cet Arc Hub Used RIF Installer . | . . . . . . . . . . . . . . . . Robots Hacked 1 | . . . . . 1 . . . . . . . . . . Non-combat . | . . . . . . . . . . . . . . . . Combat 1 | . . . . . 1 . . . . . . . . . . Robot Hacks Applied 1 | . . . . . 1 . . . . . . . . . . parse_system 1 | . . . . . 1 . . . . . . . . . . Relay Couplers Released 26 | . . . 3 2 3 . . 17 . . . . . . 1 Machine Destruction 23 | . . . 3 2 . . . 17 . . . . . . 1 Programmers 3 | . . . . . 3 . . . . . . . . . . Fabnet Peak Effective % . | . . . . . . . . . . . . . . . . Robots Rewired 11 | . . . . . . . . . . . . 11 . . . Allies Hacked 1 | . . . . . . . . . . . . . 1 . . Hacks Repelled . | . . . . . . . . . . . . . . . . Allies | -11 -10 -10 -8 -7 -7 -7 -5 -5 -4 -4 -4 -4 -4 -4 -4 -------- Run | Yrd Mat Sub Mat Fac Sto Rec Fac Gar Fac Was Fac Ext Cet Arc Hub Total Allies 61 | . . . . 4 12 . . . 5 19 . 14 5 . 2 Largest Group 20 | . . . . 4 10 1 . . 5 19 19 19 20 18 17 Highest-Rated Group 1212 | . . . . 24 173 46 . . 235 702 700 781 1212 1137 978 Highest-Rated Ally 159 | . . . . 6 46 46 . . 47 50 50 159 159 159 119 Initial Warlord ECA Mod 11 | . . . . . . . . . 11 11 11 11 11 11 11 Total Orders . | . . . . . . . . . . . . . . . . Ally Attacks 567 | . . . . . 106 4 . . . 112 70 55 34 23 163 Total Damage 14176 | . . . . . 1686 127 . . . 2915 2450 1280 937 508 4273 Kills 63 | . . . . . 11 . . . . 5 8 9 4 1 25 Allies Corrupted 2 | . . . . . . . . . . . . . 1 . 1 Allies Melted 2 | . . . . . . . . . . . . 1 . . 1 X0-1V1 Amusement Gains 382 | . 2 . 110 22 20 10 10 40 68 . . 20 . . 80 Average Entertainment 49 | . 2 1 33 65 39 27 13 37 80 83 83 67 49 28 56 Good Acts 157 | . . 2 45 4 7 21 5 12 22 7 3 11 2 1 15 Bad Acts 98 | . . 2 27 5 8 21 2 2 12 2 6 6 2 1 2 Intel | -11 -10 -10 -8 -7 -7 -7 -5 -5 -4 -4 -4 -4 -4 -4 -4 ------- Run | Yrd Mat Sub Mat Fac Sto Rec Fac Gar Fac Was Fac Ext Cet Arc Hub Active Infowar (turns) 5106 | . . . 243 31 . . . . 1896 421 271 941 334 128 841 Optics 4832 | . . . . . . . . . 1896 421 271 941 334 128 841 Terrain 274 | . . . 243 31 . . . . . . . . . . . Cloaking 7 | . . . . . . . . . . 7 . . . . . Robot Analysis Total 1 | . 1 . . . . . . . . . . . . . . Derelict Logs Recovered 1 | . . 1 . . . . . . . . . . . . . Drone Launches . | . . . . . . . . . . . . . . . . Drone Recoveries . | . . . . . . . . . . . . . . . . Exploration | -11 -10 -10 -8 -7 -7 -7 -5 -5 -4 -4 -4 -4 -4 -4 -4 ------------- Run | Yrd Mat Sub Mat Fac Sto Rec Fac Gar Fac Was Fac Ext Cet Arc Hub Turns Passed 18694 | 56 990 541 3425 878 1579 4533 351 1435 1970 421 271 941 334 128 841 Spaces Moved 10252 | 36 489 305 1408 397 617 1358 263 868 2217 333 357 866 319 52 367 Core 15 | 15 . . . . . . . . . . . . . . . Treads 4334 | 21 489 305 1408 397 617 468 212 218 . . . . . . 199 Legs 2730 | . . . . . . 175 . 348 1846 332 . . . . 29 Wheels 492 | . . . . . . 492 . . . . . . . . . Hover 227 | . . . . . . 125 51 51 . . . . . . . Flight 2454 | . . . . . . 98 . 251 371 1 357 866 319 52 139 Fastest Speed 41 | 50 160 160 155 155 160 84 117 86 53 41 41 41 41 41 41 Average Speed 111 | 114 160 160 158 156 191 152 124 133 53 52 41 41 41 106 131 Slowest Speed 283 | 160 160 160 163 160 280 240 155 283 86 53 41 41 141 141 268 Overloaded Moves . | . . . . . . . . . . . . . . . . Propulsion Burnouts . | . . . . . . . . . . . . . . . . Robots Hopped 10 | . . . . . . . . . . . 1 9 . . . Potential Cave-ins 3 | . . . . . . 3 . . . . . . . . . Cave-ins Triggered . | . . . . . . . . . . . . . . . . Exploration Rate (%) 58 | 4 87 21 93 11 82 94 8 93 46 89 10 95 68 81 50 Regions Visited 15 Branch Regions 7 Pre-discovered Areas 6 | . 2 2 2 . . . . . . . . . . . . Known Exits Taken 9 | . . 1 1 1 1 . 1 . . . 1 1 1 1 . Unknown Exits Taken 3 | 1 1 . . . . 1 . . . . . . . . . Scrap Searched . | . . . . . . . . . . . . . . . . Spaces Dug 62 | . . . 2 1 . 19 2 7 20 . . 1 . 2 8 Terrain Destroyed 1065 | . . . 21 51 23 78 15 156 211 4 8 15 5 7 471 Melee 1 | . . . . . . . . . 1 . . . . . . Projectile 301 | . . . 6 1 1 78 2 28 83 4 8 15 5 7 63 AOE 763 | . . . 15 50 22 . 13 128 127 . . . . . 408 Terrain Rammed . | . . . . . . . . . . . . . . . . Walls Destroyed . | . . . . . . . . . . . . . . . . Machines Disabled . | . . . . . . . . . . . . . . . . Actions | -11 -10 -10 -8 -7 -7 -7 -5 -5 -4 -4 -4 -4 -4 -4 -4 --------- Run | Yrd Mat Sub Mat Fac Sto Rec Fac Gar Fac Was Fac Ext Cet Arc Hub Total 16132 | 49 624 332 2311 522 829 3718 283 1073 2786 559 457 1375 505 113 596 Wait 4070 | . 85 11 604 26 37 2158 3 45 244 193 70 334 159 50 51 Move 10220 | 35 488 304 1407 397 616 1357 263 867 2215 332 354 849 318 51 367 Hop 8 | . . . . . . . . . . . 1 7 . . . Pick Up 184 | 8 5 3 48 12 18 31 3 19 21 3 3 1 2 1 6 Fast Attach 67 | 4 2 . 5 3 25 9 2 7 4 2 . . 2 . 2 Attach 54 | 2 . . 9 10 5 6 1 4 4 1 1 . 1 . 10 Detach 31 | . 1 . 1 2 6 6 1 4 2 2 . . 1 . 5 Swap 79 | . 3 . 28 2 14 2 . 7 11 4 1 . 2 1 4 Drop 225 | . 3 . 51 6 28 63 5 28 20 6 5 1 4 1 4 Fire 956 | . 36 14 158 58 77 85 5 79 175 16 22 60 15 9 147 Melee 12 | . . . . . . . . . 12 . . . . . . Ram . | . . . . . . . . . . . . . . . . Kick 56 | . . . . . . . . . 56 . . . . . . Crush 3 | . 1 . . . 1 1 . . . . . . . . . Escape Stasis 39 | . . . . . . . . 12 11 . . 16 . . . Rewire 112 | . . . . . 2 . . 1 1 . . 107 1 . . Trap . | . . . . . . . . . . . . . . . . Miscellaneous 16 | . . . . 6 . . . . 10 . . . . . . Route ------- -11/Scrapyard -10/Materials (discovered 6 exits: [*Mat x3] / *Min x2 / [*Sub]) -10/Subcaves (discovered 2 exits: *Mat x2) -8/Materials (discovered 3 exits: *Fac x3) -7/Factory (discovered 3 exits: Fac / *Sto / Low) -7/Storage -7/Recycling -5/Factory -5/Garrison (discovered 3 exits: *Fac x3) -4/Factory (discovered 9 exits: *Res x4 / *Upp x2 / *Ext x2 / Arm) -4/Waste -4/Factory -4/Extension (discovered 3 exits: *Res x2 / *Cet) -4/Cetus (discovered 2 exits: *Res / *Arc) -4/Archives (discovered 3 exits: *Res / *Hub x2) -4/Hub_04(d) (discovered 4 exits: *Res x4) History --------- Turn | Location | Event 20 | -11/Scrapyard | Discovered new exit (range 16) 57 | -11/Scrapyard | Entered Materials 180 | -10/Materials | Discovered new exit (range 15) 230 | -10/Materials | Discovered new exit (range 15) 315 | -10/Materials | Build established: Mutant 550 | -10/Materials | Discovered new exit (range 9) 715 | -10/Materials | Discovered new exit (range 14) 873 | -10/Materials | Learned location of 1 exit from Storage 924 | -10/Materials | Learned location of Recycling (-7) 963 | -10/Materials | Identified exit to Mines 990 | -10/Materials | Learned 2 Mines zone layouts 1008 | -10/Materials | Learned Storage stockpile data 1026 | -10/Materials | Discovered new exit (range 4) 1034 | -10/Materials | Learned 4 Subcaves zone layouts 1045 | -10/Materials | Prayed at D.C.S.S. Altar Unit 1047 | -10/Materials | Entered Subcaves 1048 | -10/Subcaves | Approached by a straggling Scientist 1048 | -10/Subcaves | Identified exit to Materials 1335 | -10/Subcaves | Discovered exit to Materials (range 11) 1337 | -10/Subcaves | Learned location of Zion (-7) 1466 | -10/Subcaves | Core integrity fell below 50% 1469 | -10/Subcaves | X0-1V1 caused items to flee you 1471 | -10/Subcaves | Heat dissipation permanently improved by X0-1V1 (+20; -100 max core) 1552 | -10/Subcaves | Met a Zionite searching for "candidates" 1588 | -10/Subcaves | Entered Materials 1588 | -8/Materials | Evolved 4 slots: Propulsion x1, Utility x2, Weapon x1 1873 | -8/Materials | Identified exit to Factory 1873 | -8/Materials | X0-1V1 revealed exit location to -7/Factory 1873 | -8/Materials | TH resistance permanently improved by X0-1V1 (+15%; -150 max core) 1970 | -8/Materials | Build established: Scavenger-Tank 2063 | -8/Materials | Garrison activated, responded to threat 2081 | -8/Materials | X0-1V1 foreshadows a heat wave 2225 | -8/Materials | Identified exit to Garrison 2292 | -8/Materials | Ambient heat levels rising (+10) 2303 | -8/Materials | X0-1V1 announced a LAN party 2366 | -8/Materials | X0-1V1 revealed exit location to -7/Factory 2367 | -8/Materials | Garrison activated, responded to threat 2422 | -8/Materials | Destroyed 8 combat bots 2456 | -8/Materials | Core integrity restored by X0-1V1 (+81) 2526 | -8/Materials | Ambient heat levels rising (+10) 2599 | -8/Materials | Build established: Scavenger-Gunner 2642 | -8/Materials | Discovered exit to Factory (range 12) 2741 | -8/Materials | Ambient heat levels falling (-10) 2764 | -8/Materials | X0-1V1 put everyone to sleep 2782 | -8/Materials | X0-1V1 vaporized surrounding terrain (radius 20) 2930 | -8/Materials | Repaired Enh. Autogun 2978 | -8/Materials | Ambient heat levels falling (-10) 3102 | -8/Materials | X0-1V1 sent hostile S-10 Pest (x3) 3236 | -8/Materials | X0-1V1 caused items to flee you 3315 | -8/Materials | Learned Factory emergency access door positions 3409 | -8/Materials | Items stopped fleeing you 3459 | -8/Materials | Learned 4 Lower Caves zone layouts 3487 | -8/Materials | Core integrity restored by X0-1V1 (+51) 3526 | -8/Materials | X0-1V1 activates XOMVISION 3536 | -8/Materials | X0-1V1 vaporized surrounding terrain (radius 17) 3537 | -8/Materials | X0-1V1 sent hostile Y-45 Defender (x1) 3549 | -8/Materials | X0-1V1 added 0b10 threat records associated with you (major) 3557 | -8/Materials | Learned Factory garrison access intel 3587 | -8/Materials | X0-1V1 sent you to a vault 3588 | -8/Materials | First assault squad dispatched 3631 | -8/Materials | X0-1V1 woke everyone up 3649 | -8/Materials | Learned Storage stockpile data 3722 | -8/Materials | Forcibly received Sfc. Transmogifier from X0-1V1 3821 | -8/Materials | Learned 4 Recycling zone layouts 3928 | -8/Materials | X0-1V1 activates XOMVISION 3977 | -8/Materials | X0-1V1 added 0b10 threat records associated with you (considerable) 4010 | -8/Materials | Build established: Scavenger-Tank 4093 | -8/Materials | Sterilization system engaged 4093 | -8/Materials | Non-combat units ordered to evacuate 4193 | -8/Materials | Combat units ordered to evacuate 4393 | -8/Materials | Ambient heat levels rising (+10) 4543 | -8/Materials | Ambient heat levels rising (+10) 4693 | -8/Materials | Ambient heat levels rising (+10) 4755 | -8/Materials | Build established: Mutant 4843 | -8/Materials | Ambient heat levels rising (+10) 4993 | -8/Materials | Ambient heat levels rising (+10) 5013 | -8/Materials | Entered Factory 5013 | -7/Factory | Evolved 2 slots: Utility x1, Weapon x1 5014 | -7/Factory | Identified exit to Storage 5014 | -7/Factory | Identified exit to Lower Caves 5016 | -7/Factory | Loaded intel: 4 garrison access locations 5048 | -7/Factory | Identified exit to Factory 5048 | -7/Factory | X0-1V1 revealed exit location to -6/Factory 5193 | -7/Factory | Garrison activated, responded to threat 5197 | -7/Factory | Fabricated K-01 Serf (x4) 5224 | -7/Factory | X0-1V1 tapped a No Entrance sign 5259 | -7/Factory | X0-1V1 vaporized surrounding terrain (radius 18) 5276 | -7/Factory | X0-1V1 sent hostile X-57 Shotgunner (x2) 5304 | -7/Factory | Destroyed 7 combat bots 5311 | -7/Factory | Lost 4 allies 5431 | -7/Factory | X0-1V1 enhanced Transport squad support 5640 | -7/Factory | Build established: Tank 5667 | -7/Factory | Core integrity permanently improved by X0-1V1 (+250) 5701 | -7/Factory | Garrison activated, responded to threat 5745 | -7/Factory | Lost 4 parts (2n1u1w) 5813 | -7/Factory | First assault squad dispatched 5891 | -7/Factory | Entered Storage 5892 | -7/Storage | Identified exit to Recycling 5946 | -7/Storage | X0-1V1 activates XOMVISION 5998 | -7/Storage | Build established: Gunner 6041 | -7/Storage | X0-1V1 put everyone to sleep 6196 | -7/Storage | X0-1V1 mutated your Utility slot to Weapon slot 6199 | -7/Storage | X0-1V1 vaporized surrounding terrain (radius 18) 6339 | -7/Storage | Assisted by bots powering up and referring to "LRC-V3" 6403 | -7/Storage | Garrison activated, responded to threat 6486 | -7/Storage | X0-1V1 enhanced Transport squad support 6539 | -7/Storage | Core integrity fell below 50% 6557 | -7/Storage | Lost 6 allies 6576 | -7/Storage | System corruption reached 10% 6944 | -7/Storage | X0-1V1 woke everyone up 6956 | -7/Storage | Build established: Scavenger-Tank 7073 | -7/Storage | Met a pair of Derelict thieves 7099 | -7/Storage | Found Prototype Launcher 7099 | -7/Storage | Identified Rocket Array 7170 | -7/Storage | Destroyed 8 combat bots 7411 | -7/Storage | Found Rocket Array 7414 | -7/Storage | Found Rocket Array 7457 | -7/Storage | Used back door to open Recycling access 7470 | -7/Storage | Entered Recycling 7470 | -7/Recycling | Accompanied by 1 ally 7528 | -7/Recycling | Core integrity restored by X0-1V1 (+154) 7854 | -7/Recycling | Core integrity restored by X0-1V1 (+154) 7940 | -7/Recycling | Discovered new exit (range 9) 8588 | -7/Recycling | Entered Scraplab 8594 | -7/Recycling | Found Prototype Device 8594 | -7/Recycling | Identified Scrap Engine 9008 | -7/Recycling | Build established: Mutant 9034 | -7/Recycling | X0-1V1 added 0b10 threat records associated with you (minor) 9427 | -7/Recycling | X0-1V1 caused items to flee you 9461 | -7/Recycling | Build established: Construct 9564 | -7/Recycling | Items stopped fleeing you 9627 | -7/Recycling | X0-1V1 sent hostile C-17 Slicer (x1) 9717 | -7/Recycling | X0-1V1 put everyone to sleep 10639 | -7/Recycling | X0-1V1 vaporized surrounding terrain (radius 16) 11019 | -7/Recycling | X0-1V1 sent you into danger 11432 | -7/Recycling | X0-1V1 activates XOMVISION 11490 | -7/Recycling | Core integrity restored by X0-1V1 (+119) 12003 | -7/Recycling | Entered Factory 12003 | -5/Factory | Evolved 4 slots: Power x1, Propulsion x1, Utility x2 12040 | -5/Factory | X0-1V1 redirected Transport squads to designated parking area 12105 | -5/Factory | X0-1V1 released a cloud of subatomizers 12354 | -5/Factory | Identified exit to Garrison 12354 | -5/Factory | Entered Garrison 12406 | -5/Garrison | Garrison Relay disabled 12410 | -5/Garrison | Triggered checkpoint 12468 | -5/Garrison | Triggered checkpoint 12701 | -5/Garrison | Discovered new exit (range 10) 12758 | -5/Garrison | Garrison Relay disabled 12780 | -5/Garrison | Triggered checkpoint 12884 | -5/Garrison | Phase Generator disabled 13257 | -5/Garrison | H-XX Assembler disabled 13342 | -5/Garrison | Discovered new exit (range 5) 13374 | -5/Garrison | Triggered checkpoint 13406 | -5/Garrison | Garrison Relay disabled 13412 | -5/Garrison | Spotted Striker 13414 | -5/Garrison | Spotted Striker 13429 | -5/Garrison | Destroyed Striker 13437 | -5/Garrison | Destroyed Striker 13596 | -5/Garrison | Triggered checkpoint 13610 | -5/Garrison | Identified exit to Factory 13610 | -5/Garrison | X0-1V1 revealed exit location to -4/Factory 13650 | -5/Garrison | Triggered checkpoint 13661 | -5/Garrison | Garrison Relay disabled 13712 | -5/Garrison | X0-1V1 sent you into danger 13789 | -5/Garrison | Entered Factory 13789 | -4/Factory | Evolved 2 slots: Utility x2 13817 | -4/Factory | X0-1V1 sent hostile X-67 Chaingunner (x2) 14039 | -4/Factory | First assault squad dispatched 14247 | -4/Factory | X0-1V1 added 0b10 threat records associated with you (major) 14303 | -4/Factory | X0-1V1 vaporized surrounding terrain (radius 23) 14306 | -4/Factory | Destroyed 7 combat bots 14518 | -4/Factory | Found Prototype Processor 14518 | -4/Factory | Identified Exp. Signal Interpreter 14568 | -4/Factory | Discovered new exit (range 15) 14604 | -4/Factory | Identified exit to Upper Caves 14604 | -4/Factory | Identified exit to Extension 14604 | -4/Factory | Identified exit to Armory 14648 | -4/Factory | X0-1V1 put everyone to sleep 14798 | -4/Factory | X0-1V1 downgraded hostiles (x1) 15070 | -4/Factory | Identified exit to Research 15070 | -4/Factory | X0-1V1 revealed exit location to -3/Research 15101 | -4/Factory | X0-1V1 woke everyone up 15104 | -4/Factory | Cargo convoy interrupted 15376 | -4/Factory | Spotted B-86 Titan 15392 | -4/Factory | Destroyed B-86 Titan 15420 | -4/Factory | Discovered exit to Research (range 11) 15569 | -4/Factory | System corruption reached 10% 15627 | -4/Factory | Found PL-3XN's Ring of Power 15636 | -4/Factory | X0-1V1 sent you to a vault 15636 | -4/Factory | Allied Derelicts emerged from ambush trap array 15649 | -4/Factory | X0-1V1 revealed exit location to -3/Research 15691 | -4/Factory | X0-1V1 revealed exit location to -3/Research 15759 | -4/Factory | Manually triggered Chute Trap 15759 | -4/Factory | Sucked down chute 15759 | -4/Factory | Entered Waste 15766 | -4/Waste | Found Adv. Powered Armor 15768 | -4/Waste | Spotted C-40 Crusher 15779 | -4/Waste | Spotted C-40 Crusher 15866 | -4/Waste | Spotted C-40 Crusher 15866 | -4/Waste | Spotted C-40 Crusher 15867 | -4/Waste | Spotted C-40 Crusher 15867 | -4/Waste | Discovered new exit (range 4) 15867 | -4/Waste | Spotted C-40 Crusher 15867 | -4/Waste | X0-1V1 whisked you away to safety 15877 | -4/Waste | Warlord forces began an assault 15909 | -4/Waste | Allies destroyed C-40 Crusher 15913 | -4/Waste | Allies destroyed C-40 Crusher 15919 | -4/Waste | Allies destroyed C-40 Crusher 15964 | -4/Waste | Destroyed C-40 Crusher 15967 | -4/Waste | Allies destroyed C-40 Crusher 15973 | -4/Waste | Allies destroyed C-40 Crusher 16002 | -4/Waste | Found Broken Gamma Bomb Array 16180 | -4/Waste | Entered Factory 16180 | -4/Factory | Accompanied by 19 allies 16292 | -4/Factory | Lost 11 allies 16325 | -4/Factory | Found Quantum Capacitor 16327 | -4/Factory | X0-1V1 added 0b10 threat records associated with you (considerable) 16344 | -4/Factory | X0-1V1 made a cryptic comment about sterilization and BL-4Z3 16357 | -4/Factory | Discovered exit to Extension (range 11) 16392 | -4/Factory | Garrison activated, responded to threat 16403 | -4/Factory | Sterilization system engaged 16403 | -4/Factory | Non-combat units ordered to evacuate 16451 | -4/Factory | Entered Extension 16451 | -4/Extension | Accompanied by 8 allies 16546 | -4/Extension | X0-1V1 put everyone to sleep 16627 | -4/Extension | Identified exit to Cetus 16627 | -4/Extension | X0-1V1 revealed exit location to -4/Cetus 16718 | -4/Extension | X0-1V1 activates XOMVISION 16778 | -4/Extension | X0-1V1 vaporized surrounding terrain (radius 19) 16887 | -4/Extension | Build established: Commander-Construct 16958 | -4/Extension | X0-1V1 revealed exit location to -3/Research 16959 | -4/Extension | X0-1V1 announced a LAN party 16982 | -4/Extension | X0-1V1 woke everyone up 16990 | -4/Extension | P-70 Sage assimilated allied SN-XDU(l) 17003 | -4/Extension | Spotted B-86 Titan 17015 | -4/Extension | Destroyed B-86 Titan 17021 | -4/Extension | Spotted B-86 Titan 17028 | -4/Extension | Destroyed B-86 Titan 17067 | -4/Extension | Destroyed 8 combat bots 17068 | -4/Extension | X0-1V1 activates XOMVISION 17069 | -4/Extension | Rescued a captive Derelict 17073 | -4/Extension | Lost 3 allies 17163 | -4/Extension | Rescued A7 17201 | -4/Extension | First assault squad dispatched 17214 | -4/Extension | Rescued a captive Derelict 17251 | -4/Extension | Discovered exit to Research (range 10) 17372 | -4/Extension | X0-1V1 vaporized surrounding terrain (radius 19) 17392 | -4/Extension | Entered Cetus 17392 | -4/Cetus | Accompanied by 15 allies (A7) 17395 | -4/Cetus | Identified exit to Archives 17395 | -4/Cetus | X0-1V1 revealed exit location to -4/Archives 17397 | -4/Cetus | Acquired a Cetus Manufacturing Module code from A7 17398 | -4/Cetus | Spotted Cetus Guard 17398 | -4/Cetus | Spotted Cetus Guard 17401 | -4/Cetus | Destroyed Cetus Guard 17402 | -4/Cetus | Spotted Cetus Guard 17402 | -4/Cetus | Spotted Cetus Guard 17403 | -4/Cetus | Destroyed Cetus Guard 17404 | -4/Cetus | Destroyed Cetus Guard 17412 | -4/Cetus | Allies destroyed Cetus Guard 17438 | -4/Cetus | Escorted A7 to Cetus Mainframe 17440 | -4/Cetus | X0-1V1 activates XOMVISION 17441 | -4/Cetus | Started Cetus Manufacturing Module 17455 | -4/Cetus | Spotted Cetus Guard 17455 | -4/Cetus | Spotted Cetus Guard 17459 | -4/Cetus | Destroyed Cetus Guard 17459 | -4/Cetus | Spotted Cetus Guard 17460 | -4/Cetus | Destroyed Cetus Guard 17462 | -4/Cetus | Spotted Cetus Guard 17465 | -4/Cetus | Destroyed Cetus Guard 17466 | -4/Cetus | Manufactured an Enhanced Grunt 17470 | -4/Cetus | Allies destroyed Cetus Guard 17471 | -4/Cetus | Discovered exit to Research (range 20) 17476 | -4/Cetus | Met Revision 17 17491 | -4/Cetus | Manufactured an Enhanced Grunt 17516 | -4/Cetus | Manufactured an Enhanced Grunt 17541 | -4/Cetus | Manufactured an Enhanced Grunt 17566 | -4/Cetus | Manufactured an Enhanced Grunt 17670 | -4/Cetus | P-70 Sage assimilated allied 3X-Z9F(g) 17726 | -4/Cetus | Entered Archives 17726 | -4/Archives | Accompanied by 18 allies (A7) 17731 | -4/Archives | Received a hacking code to weaken MAIN.C 17772 | -4/Archives | Discovered exit to Research (range 16) 17790 | -4/Archives | Discovered new exit (range 15) 17850 | -4/Archives | Identified exit to Hub_04(d) 17850 | -4/Archives | X0-1V1 revealed exit location to -4/Hub_04(d) 17854 | -4/Archives | Entered Hub_04(d) 17854 | -4/Hub_04(d) | Accompanied by 17 allies 17857 | -4/Hub_04(d) | X0-1V1 enhanced Transport squad support 17919 | -4/Hub_04(d) | Discovered exit to Research (range 13) 17960 | -4/Hub_04(d) | X0-1V1 revealed exit location to -3/Research 18008 | -4/Hub_04(d) | Discovered exit to Research (range 19) 18104 | -4/Hub_04(d) | First assault squad dispatched 18124 | -4/Hub_04(d) | Lost 6 allies 18185 | -4/Hub_04(d) | Lost 7 allies 18195 | -4/Hub_04(d) | Weapon slot count temporarily expanded by X0-1V1 (+4) 18232 | -4/Hub_04(d) | Destroyed 10 combat bots 18281 | -4/Hub_04(d) | X0-1V1 revealed exit location to -3/Research 18385 | -4/Hub_04(d) | Build established: Construct 18447 | -4/Hub_04(d) | X0-1V1 whisked you away to safety 18499 | -4/Hub_04(d) | X0-1V1 sent allied Executioner (x1) 18502 | -4/Hub_04(d) | Network Hub disabled 18502 | -4/Hub_04(d) | Garrison activated, responded to threat 18518 | -4/Hub_04(d) | Spotted Lightning 18518 | -4/Hub_04(d) | Spotted Lightning 18541 | -4/Hub_04(d) | Destroyed 9 combat bots 18542 | -4/Hub_04(d) | Destroyed Lightning 18560 | -4/Hub_04(d) | Spotted Lightning 18562 | -4/Hub_04(d) | Spotted Lightning 18566 | -4/Hub_04(d) | Spotted Lightning 18579 | -4/Hub_04(d) | X0-1V1 turns hostiles against one another 18589 | -4/Hub_04(d) | Destroyed Lightning 18592 | -4/Hub_04(d) | Destroyed Lightning 18615 | -4/Hub_04(d) | Weapon slot count reverted to normal (-4) 18618 | -4/Hub_04(d) | Network Hub disabled 18618 | -4/Hub_04(d) | High security lockdown imminent 18634 | -4/Hub_04(d) | Destroyed Lightning 18655 | -4/Hub_04(d) | Destroyed 11 combat bots 18659 | -4/Hub_04(d) | Lost 7 parts (1p3n1u2w) 18661 | -4/Hub_04(d) | Found Prototype Processor 18661 | -4/Hub_04(d) | Identified Exp. Targeting Computer 18668 | -4/Hub_04(d) | Found Corrupted Prototype Energy Cannon 18678 | -4/Hub_04(d) | Identified EMDS 18695 | -4/Hub_04(d) | Self-destructed Last Messages --------------- 18682_ Your Treaded Armored-Myomer Exoskeleton, Quantum-Antimatter Reactor briefly glow, restoring some integrity. 18683_ ALERT: Performing unscheduled system reset. 18683_ Critical hit (Burn: +37). 18683_ Slug penetrates G-67 Veteran. 18683_ G-67 Veteran destroyed. 18685_ X0-1V1: "And it's a trip and a fumble!" 18685_ Rocket Array tossed aside. 18687_ Acquired Rocket Array. 18688_ System corrupted: Component data lost. 18692_ G-73 Enforcer heat damages Unknown Reactor. 18692_ C-45 Heavy ARC bursts open, deploying its payload. 18692_ G-73 Enforcer unfolds itself. 18692_ G-67 Veteran unfolds itself. 18692_ E-15 Imp unfolds itself. 18694_ Treaded Armored-Myomer Exoskeleton destroyed. 18694_ Arm. Scrap Engine damaged due to network destabilization (-7). 18695_ Adv. Cooling System blown off. 18695_ Enh. Flexi-carbon Leg blown off. 18695_ E-15 Imp destroyed. Map ----- +----------------------------------------------------+ | #%!#!" " ???????????????????????????????????? | | =%#?? ? ???????????????????????????????????? | | # #???????????????????????